bitfinex/quotes_SOLUSD_20241024
["timestamp","ask_amount","ask_price","bid_price","bid_amount"]
[1729750042566,18.86675042,173.71,173.64,7.23116167]
[1729750042760,23.776884,173.75,173.7,18.61577042]
[1729750042961,22.8011,173.76,173.73,18.61577042]
[1729750044580,22.8011,173.76,173.72,18.61577042]
[1729750044782,18.86675042,173.75,173.66,20.0]
[1729750045081,18.61577042,173.74,173.69,18.61577042]
[1729750045285,0.12549,173.73,173.69,18.61577042]
[1729750045980,0.25098,173.74,173.7,18.61577042]
[1729750046287,0.12549,173.74,173.72,18.61577042]
[1729750046661,0.12549,173.74,173.7,18.61577042]
[1729750047482,18.74126042,173.74,173.69,18.61577042]
[1729750047875,0.25098,173.74,173.69,18.61577042]
[1729750050583,18.61577042,173.74,173.69,18.61577042]
[1729750050889,0.12549,173.73,173.68,18.61577042]
[1729750053086,0.12549,173.73,173.69,18.61577042]
[1729750054188,0.12549,173.74,173.69,18.61577042]
[1729750055669,18.74126042,173.74,173.69,18.61577042]
[1729750056398,18.74126042,173.74,173.68,18.61577042]
[1729750058693,18.74126042,173.74,173.69,18.61577042]
[1729750059990,18.74126042,173.74,173.68,18.61577042]
[1729750060303,18.74126042,173.74,173.66,20.0]
[1729750060474,18.74126042,173.74,173.68,18.61577042]
[1729750061564,18.61577042,173.7,173.65,18.61577042]
[1729750061792,0.12549,173.71,173.67,18.61577042]
[1729750061973,0.12549,173.71,173.69,18.61577042]
[1729750062682,48.27354442,173.75,173.69,18.61577042]
[1729750062875,18.74126042,173.74,173.69,18.61577042]
[1729750063283,5.7549,173.77,173.71,18.61577042]
[1729750063474,18.61577042,173.77,173.72,18.61577042]
[1729750064376,18.61577042,173.78,173.72,18.61577042]
[1729750064988,18.61577042,173.77,173.72,18.61577042]
[1729750065290,18.61577042,173.78,173.73,18.61577042]
[1729750065675,18.61577042,173.78,173.72,18.61577042]
[1729750065873,18.61577042,173.78,173.66,7.6225989]
[1729750065874,18.61577042,173.77,173.71,18.61577042]
[1729750066985,18.61577042,173.74,173.67,20.0]
[1729750067187,18.61577042,173.72,173.67,38.61577042]
[1729750068901,18.61577042,173.72,173.66,18.61577042]
[1729750070104,18.61577042,173.72,173.67,18.61577042]
[1729750072511,18.86675042,173.73,173.67,18.61577042]
[1729750077829,18.86675042,173.73,173.68,18.61577042]
[1729750079613,6.2991,173.74,173.7,18.61577042]
[1729750080616,6.2991,173.74,173.69,18.61577042]
[1729750082614,6.2991,173.74,173.69,9.30788521]
[1729750082810,24.91487042,173.74,173.66,20.0]
[1729750083011,24.91487042,173.74,173.68,18.61577042]
[1729750083316,24.91487042,173.74,173.69,18.61577042]
[1729750084329,6.2991,173.74,173.7,18.61577042]
[1729750084496,6.2991,173.74,173.69,18.61577042]
[1729750084699,24.91487042,173.74,173.69,18.61577042]
[1729750087620,6.2991,173.74,173.69,18.61577042]
[1729750088419,24.91487042,173.74,173.69,18.61577042]
[1729750090113,18.61577042,173.71,173.63,20.0]
[1729750090314,9.30788521,173.72,173.68,9.30788521]
[1729750090617,6.2991,173.74,173.7,18.61577042]
[1729750092437,24.91487042,173.74,173.69,18.61577042]
[1729750094129,11.995,173.78,173.73,18.61577042]
[1729750094510,30.61077042,173.78,173.73,18.61577042]
[1729750095219,0.12549,173.77,173.73,18.61577042]
[1729750097932,18.74126042,173.77,173.72,18.61577042]
[1729750098115,24.49596042,173.77,173.72,18.61577042]
[1729750098430,24.49596042,173.77,173.68,7.3377661]
[1729750098609,24.49596042,173.77,173.71,18.61577042]
[1729750098814,18.61577042,173.76,173.65,21.8123]
[1729750099016,18.61577042,173.76,173.71,18.61577042]
[1729750100734,24.49596042,173.77,173.71,18.61577042]
[1729750103012,18.61577042,173.75,173.69,18.61577042]
[1729750104147,18.61577042,173.71,173.64,1.00081043]
[1729750104352,18.61577042,173.71,173.66,18.61577042]
[1729750104520,18.86675042,173.69,173.63,18.61577042]
[1729750104727,18.61577042,173.67,173.62,18.61577042]
[1729750105050,18.61577042,173.65,173.57,16.0498]
[1729750105266,18.61577042,173.65,173.59,18.61577042]
[1729750106125,0.25098,173.64,173.57,16.0498]
[1729750106323,0.25098,173.64,173.56,8.33832066]
[1729750106324,18.61577042,173.62,173.56,18.61577042]
[1729750106537,18.86675042,173.61,173.56,18.61577042]
[1729750108725,0.25098,173.61,173.56,18.61577042]
[1729750109127,0.25098,173.61,173.57,18.61577042]
[1729750109647,0.25098,173.61,173.58,18.61577042]
[1729750113642,0.25098,173.61,173.57,18.61577042]
[1729750117565,0.25098,173.61,173.58,18.61577042]
[1729750119947,0.25098,173.61,173.59,18.61577042]
[1729750120360,23.776884,173.62,173.6,18.61577042]
[1729750120656,16.6051,173.67,173.53,1.00055902]
[1729750120657,35.22087042,173.67,173.61,18.61577042]
[1729750120958,35.22087042,173.67,173.62,18.61577042]
[1729750121844,0.25098,173.66,173.62,18.61577042]
[1729750122045,24.027864,173.66,173.62,18.61577042]
[1729750122356,42.64363442,173.66,173.61,18.61577042]
[1729750124466,42.64363442,173.64,173.59,18.61577042]
[1729750124977,42.64363442,173.64,173.58,18.61577042]
[1729750126237,24.027864,173.64,173.6,18.61577042]
[1729750126463,24.027864,173.65,173.61,18.61577042]
[1729750126635,0.12549,173.64,173.6,18.61577042]
[1729750127054,0.12549,173.64,173.61,18.61577042]
[1729750127451,24.027864,173.66,173.62,18.61577042]
[1729750127642,24.027864,173.66,173.63,18.61577042]
[1729750127841,24.027864,173.66,173.62,18.61577042]
[1729750129655,24.027864,173.66,173.63,18.61577042]
[1729750130555,24.027864,173.66,173.62,18.61577042]
[1729750131666,24.027864,173.66,173.57,7.3377661]
[1729750131667,0.25098,173.66,173.63,18.61577042]
[1729750132047,0.25098,173.66,173.61,18.61577042]
[1729750132247,18.86675042,173.66,173.61,18.61577042]
[1729750132470,0.25098,173.66,173.62,18.61577042]
[1729750138675,0.25098,173.66,173.61,18.61577042]
[1729750140278,18.86675042,173.66,173.61,18.61577042]
[1729750141477,0.25098,173.64,173.58,20.0]
[1729750141685,18.61577042,173.62,173.57,18.61577042]
[1729750141887,18.61577042,173.61,173.56,18.61577042]
[1729750142984,0.25098,173.64,173.57,18.61577042]
[1729750143161,18.61577042,173.62,173.57,18.61577042]
[1729750143494,18.61577042,173.62,173.52,25.95353652]
[1729750143495,18.61577042,173.58,173.52,25.95353652]
[1729750144060,18.61577042,173.58,173.53,18.61577042]
[1729750144283,0.25098,173.57,173.52,25.95353652]
[1729750145400,18.86675042,173.57,173.52,25.95353652]
[1729750145588,18.86675042,173.57,173.52,7.3377661]
[1729750145766,18.86675042,173.57,173.52,25.95353652]
[1729750146484,18.86675042,173.57,173.52,18.61577042]
[1729750146994,18.86675042,173.57,173.51,18.61577042]
[1729750147161,18.86675042,173.57,173.49,17.51795171]
[1729750147162,18.61577042,173.55,173.5,18.61577042]
[1729750147467,18.86675042,173.54,173.49,20.0]
[1729750147667,18.61577042,173.53,173.48,7.3377661]
[1729750147873,18.61577042,173.53,173.48,18.61577042]
[1729750148065,24.90505042,173.54,173.48,18.61577042]
[1729750148261,24.027864,173.56,173.51,18.61577042]
[1729750148588,42.64363442,173.56,173.49,7.3377661]
[1729750148758,42.64363442,173.56,173.51,18.61577042]
[1729750150496,42.64363442,173.56,173.45,19.94053735]
[1729750150679,42.64363442,173.56,173.51,18.61577042]
[1729750151488,18.61577042,173.55,173.5,18.61577042]
[1729750151988,18.61577042,173.55,173.49,18.61577042]
[1729750152363,18.61577042,173.55,173.5,18.61577042]
[1729750153392,42.64363442,173.54,173.49,18.61577042]
[1729750154372,24.027864,173.54,173.5,18.61577042]
[1729750154588,24.027864,173.54,173.46,20.0]
[1729750154589,16.3697,173.57,173.52,18.61577042]
[1729750154887,0.25098,173.55,173.52,18.61577042]
[1729750156866,6.0383,173.58,173.54,18.61577042]
[1729750157090,6.0383,173.58,173.56,18.61577042]
[1729750157481,6.0383,173.58,173.55,18.61577042]
[1729750160889,6.0383,173.58,173.56,18.61577042]
[1729750161596,6.0383,173.58,173.55,18.61577042]
[1729750161794,6.0383,173.58,173.56,18.61577042]
[1729750165573,6.0383,173.58,173.55,18.61577042]
[1729750165778,0.25098,173.57,173.46,27.6225989]
[1729750165982,24.027864,173.57,173.53,18.61577042]
[1729750166773,24.027864,173.57,173.48,20.0]
[1729750166976,42.64363442,173.57,173.51,18.61577042]
[1729750167175,24.027864,173.55,173.51,18.61577042]
[1729750167910,24.027864,173.55,173.45,17.51818309]
[1729750168075,24.027864,173.55,173.5,18.61577042]
[1729750168397,39.826364,173.55,173.52,18.61577042]
[1729750168576,24.027864,173.55,173.53,18.61577042]
[1729750170080,24.027864,173.56,173.53,18.61577042]
[1729750170400,0.12549,173.55,173.53,18.61577042]
[1729750171699,0.12549,173.55,173.46,0.98660556]
[1729750172004,0.12549,173.55,173.53,18.61577042]
[1729750172482,0.12549,173.55,173.46,0.98660556]
[1729750172684,0.12549,173.55,173.53,18.61577042]
[1729750174804,0.12549,173.57,173.54,18.61577042]
[1729750174982,24.027864,173.57,173.56,18.61577042]
[1729750177388,24.027864,173.57,173.55,18.61577042]
[1729750179703,15.7985,173.59,173.56,18.61577042]
[1729750179908,20.0,173.61,173.58,18.61577042]
[1729750180207,12.4029,173.62,173.58,18.61577042]
[1729750181113,24.027864,173.61,173.58,18.61577042]
[1729750181724,24.027864,173.61,173.49,2.52081285]
[1729750181911,24.027864,173.61,173.57,18.61577042]
[1729750187830,29.787864,173.61,173.57,18.61577042]
[1729750189515,48.40363442,173.61,173.57,18.61577042]
[1729750189908,29.787864,173.61,173.57,18.61577042]
[1729750193916,29.787864,173.61,173.49,7.33744814]
[1729750194101,29.787864,173.61,173.57,18.61577042]
[1729750196421,29.787864,173.61,173.5,74.46308168]
[1729750196422,29.787864,173.61,173.51,20.0]
[1729750196611,29.787864,173.61,173.57,18.61577042]
[1729750197724,29.787864,173.61,173.58,18.61577042]
[1729750198310,24.027864,173.59,173.5,20.0]
[1729750198622,24.027864,173.59,173.55,18.61577042]
[1729750199225,24.027864,173.59,173.5,94.46308168]
[1729750199411,29.788564,173.59,173.5,20.0]
[1729750199719,29.788564,173.59,173.55,18.61577042]
[1729750200926,29.788564,173.59,173.56,18.61577042]
[1729750201620,29.788564,173.59,173.5,94.46308168]
[1729750201621,29.788564,173.59,173.57,18.61577042]
[1729750202424,19.788564,173.59,173.57,18.61577042]
[1729750204732,19.788564,173.59,173.56,18.61577042]
[1729750205727,18.33638826,173.62,173.58,18.61577042]
[1729750206030,16.3149,173.63,173.61,18.61577042]
[1729750206231,5.92448063,173.65,173.62,18.61577042]
[1729750206529,5.7584,173.66,173.64,18.61577042]
[1729750206711,5.7584,173.66,173.65,18.61577042]
[1729750207028,28.1285,173.67,173.65,18.61577042]
[1729750207610,28.1285,173.67,173.6,65.15519647]
[1729750207811,28.1285,173.67,173.55,13.71577577]
[1729750208010,28.1285,173.67,173.64,18.61577042]
[1729750208211,24.027864,173.66,173.64,18.61577042]
[1729750208430,22.3704,173.67,173.55,13.71577577]
[1729750208727,0.1,173.71,173.55,13.71577577]
[1729750208728,22.3704,173.71,173.66,18.61577042]
[1729750208928,22.3704,173.71,173.67,18.61577042]
[1729750208929,5.757,173.7,173.67,18.61577042]
[1729750209316,20.0,173.69,173.67,18.61577042]
[1729750209847,25.757,173.7,173.67,18.61577042]
[1729750210637,20.25098,173.68,173.67,18.61577042]
[1729750212121,24.63157658,173.73,173.67,18.61577042]
[1729750212312,5.754,173.79,173.72,18.61577042]
[1729750212519,18.61577042,173.74,173.69,18.61577042]
[1729750212723,18.61577042,173.74,173.63,0.38717034]
[1729750213025,18.61577042,173.74,173.62,6.37832763]
[1729750213026,18.61577042,173.68,173.62,15.4487]
[1729750213356,18.61577042,173.68,173.58,15.4487]
[1729750213531,18.61577042,173.67,173.62,18.61577042]
[1729750214035,0.25098,173.66,173.58,15.4487]
[1729750214230,0.25098,173.66,173.61,18.61577042]
[1729750215127,0.25098,173.66,173.62,18.61577042]
[1729750215522,0.25098,173.66,173.61,18.61577042]
[1729750216646,18.86675042,173.66,173.61,18.61577042]
[1729750217343,0.25098,173.66,173.62,18.61577042]
[1729750218539,0.25098,173.66,173.61,18.61577042]
[1729750220324,0.25098,173.66,173.62,18.61577042]
[1729750220849,0.25098,173.66,173.63,18.61577042]
[1729750226755,0.25098,173.66,173.62,18.61577042]
[1729750229038,62.39265442,173.65,173.56,6.66712649]
[1729750229350,18.86675042,173.62,173.57,18.61577042]
[1729750230134,18.61577042,173.61,173.56,19.00309691]
[1729750230335,0.25098,173.6,173.56,19.00309691]
[1729750231152,0.25098,173.6,173.56,0.38732649]
[1729750231458,24.027864,173.61,173.57,18.61577042]
[1729750232160,0.25098,173.61,173.59,18.61577042]
[1729750233132,0.25098,173.61,173.6,18.61577042]
[1729750233333,5.7583,173.66,173.6,18.61577042]
[1729750233666,5.7583,173.66,173.63,18.61577042]
[1729750234031,5.7583,173.66,173.62,18.61577042]
[1729750234357,21.8435,173.67,173.65,18.61577042]
[1729750234558,21.8435,173.67,173.64,18.61577042]
[1729750235052,18.61577042,173.69,173.64,18.61577042]
[1729750235255,5.7578,173.68,173.64,18.61577042]
[1729750235836,0.25098,173.67,173.64,18.61577042]
[1729750237066,0.12549,173.67,173.65,18.61577042]
[1729750237259,0.12549,173.67,173.66,18.61577042]
[1729750237562,0.12549,173.67,173.6,74.46308168]
[1729750237563,0.12549,173.68,173.64,18.61577042]
[1729750238062,0.12549,173.68,173.65,18.61577042]
[1729750238435,0.25098,173.68,173.65,18.61577042]
[1729750238748,0.25098,173.68,173.64,18.61577042]
[1729750239065,5.88319,173.68,173.65,18.61577042]
[1729750239260,5.88319,173.68,173.58,6.3131]
[1729750239261,0.12549,173.67,173.58,6.3131]
[1729750239568,0.12549,173.67,173.63,18.61577042]
[1729750239766,0.12549,173.67,173.64,18.61577042]
[1729750240362,18.74126042,173.65,173.56,16.14522649]
[1729750240548,0.12549,173.64,173.6,18.61577042]
[1729750240848,0.12549,173.64,173.61,18.61577042]
[1729750242649,0.12549,173.64,173.56,16.14522649]
[1729750242861,0.25098,173.6,173.56,0.38732649]
[1729750243167,0.25098,173.6,173.56,19.00309691]
[1729750243458,0.25098,173.6,173.57,18.61577042]
[1729750243634,0.25098,173.61,173.57,18.61577042]
[1729750244470,0.25098,173.62,173.6,9.30788521]
[1729750244669,0.12549,173.64,173.61,18.61577042]
[1729750244873,5.7583,173.67,173.63,18.61577042]
[1729750245965,0.25098,173.66,173.63,18.61577042]
[1729750246453,0.25098,173.66,173.62,18.61577042]
[1729750246761,24.027864,173.66,173.62,18.61577042]
[1729750246979,24.027864,173.66,173.56,0.38732649]
[1729750246980,24.027864,173.64,173.59,18.61577042]
[1729750247135,0.25098,173.62,173.58,18.61577042]
[1729750247339,0.25098,173.62,173.57,18.61577042]
[1729750247762,6.01068,173.62,173.58,18.61577042]
[1729750257078,6.01068,173.62,173.57,18.61577042]
[1729750258177,0.25098,173.58,173.56,0.38732649]
[1729750258475,0.25098,173.58,173.54,18.61577042]
[1729750258673,0.25098,173.58,173.55,18.61577042]
[1729750258854,0.25098,173.59,173.55,18.61577042]
[1729750259059,20.9819,173.62,173.58,18.61577042]
[1729750259273,0.25098,173.61,173.59,18.61577042]
[1729750259455,20.25098,173.62,173.59,18.61577042]
[1729750260368,26.01068,173.62,173.58,18.61577042]
[1729750263572,44.62645042,173.62,173.51,0.38743811]
[1729750263763,44.62645042,173.62,173.56,18.61577042]
[1729750264570,44.62645042,173.62,173.57,18.61577042]
[1729750266062,44.62645042,173.62,173.56,18.61577042]
[1729750266685,44.62645042,173.62,173.57,18.61577042]
[1729750267077,26.01068,173.62,173.57,18.61577042]
[1729750268989,0.25098,173.62,173.59,18.61577042]
[1729750269880,0.25098,173.61,173.59,18.61577042]
[1729750271994,0.25098,173.61,173.58,18.61577042]
[1729750272894,0.25098,173.61,173.51,1.37675709]
[1729750272895,6.01118,173.61,173.51,1.37675709]
[1729750273098,0.25098,173.59,173.55,18.61577042]
[1729750273285,5.7597,173.62,173.58,18.61577042]
[1729750273486,6.01038,173.63,173.59,18.61577042]
[1729750274792,30.1181,173.66,173.62,18.61577042]
[1729750274793,15.7214,173.66,173.62,18.61577042]
[1729750275093,11.9707,173.68,173.64,18.61577042]
[1729750275474,11.9707,173.68,173.65,18.61577042]
[1729750276296,0.25098,173.67,173.65,28.96218734]
[1729750276672,0.25098,173.67,173.63,28.96218734]
[1729750276877,0.25098,173.65,173.6,28.96218734]
[1729750277199,29.21316734,173.65,173.59,28.96218734]
[1729750278801,34.97206734,173.65,173.59,28.96218734]
[1729750280511,34.97206734,173.65,173.6,28.96218734]
[1729750280998,34.97206734,173.65,173.59,28.96218734]
[1729750281199,34.97206734,173.65,173.6,28.96218734]
[1729750283504,34.97206734,173.65,173.55,16.0376]
[1729750283505,34.97206734,173.65,173.61,28.96218734]
[1729750288116,6.00988,173.65,173.61,28.96218734]
[1729750293916,15.0443,173.7,173.64,28.96218734]
[1729750294118,20.8015,173.7,173.66,28.96218734]
[1729750295420,0.25098,173.69,173.66,28.96218734]
[1729750298404,0.25098,173.69,173.66,18.5327854]
[1729750300514,6.00828,173.69,173.66,18.5327854]
[1729750304825,0.25098,173.69,173.67,18.5327854]
[1729750305020,0.25098,173.69,173.66,18.5327854]
[1729750305424,0.25098,173.69,173.67,18.5327854]
[1729750305918,0.25098,173.69,173.66,18.5327854]
[1729750306317,6.00838,173.69,173.66,18.5327854]
[1729750307850,6.00838,173.69,173.67,18.5327854]
[1729750310529,6.00838,173.69,173.66,18.5327854]
[1729750316759,6.00838,173.69,173.67,18.5327854]
[1729750318658,6.00838,173.69,173.66,18.5327854]
[1729750321154,6.00838,173.69,173.61,15.6526]
[1729750321458,0.25098,173.67,173.62,18.5327854]
[1729750321836,0.25098,173.65,173.62,18.5327854]
[1729750322048,0.25098,173.65,173.63,18.5327854]
[1729750323143,0.25098,173.65,173.58,6.37832763]
[1729750323354,0.25098,173.65,173.62,18.5327854]
[1729750324339,0.25098,173.65,173.63,18.5327854]
[1729750327861,0.25098,173.65,173.62,18.5327854]
[1729750328069,24.5424654,173.65,173.57,15.6526]
[1729750328364,24.5424654,173.65,173.6,18.5327854]
[1729750330879,0.25098,173.63,173.54,13.71577577]
[1729750331083,18.7837654,173.63,173.58,18.5327854]
[1729750331779,18.5327854,173.62,173.58,18.5327854]
[1729750331977,0.25098,173.61,173.58,18.5327854]
[1729750332178,0.25098,173.61,173.57,18.5327854]
[1729750333159,0.25098,173.61,173.52,18.75343607]
[1729750333368,0.25098,173.59,173.55,18.5327854]
[1729750333976,0.25098,173.6,173.56,18.5327854]
[1729750336282,18.7837654,173.6,173.55,18.5327854]
[1729750336584,24.5441654,173.6,173.52,15.3577]
[1729750336789,24.5441654,173.6,173.55,18.5327854]
[1729750352509,24.5441654,173.6,173.56,18.5327854]
[1729750353801,15.2516,173.63,173.59,18.5327854]
[1729750354007,21.8168,173.67,173.62,18.5327854]
[1729750354200,21.8168,173.67,173.63,18.5327854]
[1729750354406,27.5748,173.67,173.63,18.5327854]
[1729750355116,5.7578,173.68,173.65,18.5327854]
[1729750355290,12.33205975,173.7,173.67,18.5327854]
[1729750355491,40.2597854,173.71,173.66,18.5327854]
[1729750355698,24.2900854,173.7,173.65,18.5327854]
[1729750356483,24.027864,173.69,173.65,18.5327854]
[1729750357212,29.785364,173.69,173.65,18.5327854]
[1729750357517,29.785364,173.69,173.66,18.5327854]
[1729750359029,29.785364,173.69,173.65,18.5327854]
[1729750360990,21.727,173.71,173.67,18.5327854]
[1729750361220,22.1678,173.75,173.7,18.5327854]
[1729750361414,27.9233,173.75,173.7,18.5327854]
[1729750361591,27.9233,173.75,173.71,18.5327854]
[1729750362307,24.027864,173.74,173.7,18.5327854]
[1729750362508,42.5606494,173.74,173.69,18.5327854]
[1729750364400,0.25098,173.72,173.7,18.5327854]
[1729750365688,0.25098,173.72,173.69,18.5327854]
[1729750365906,6.00728,173.72,173.69,18.5327854]
[1729750368941,0.25098,173.72,173.7,18.5327854]
[1729750370325,0.25098,173.72,173.69,18.5327854]
[1729750371634,0.25098,173.72,173.7,18.5327854]
[1729750372429,5.7554,173.75,173.71,18.5327854]
[1729750372831,5.7554,173.75,173.7,18.5327854]
[1729750373539,0.25098,173.74,173.69,18.5327854]
[1729750373750,42.5606494,173.74,173.68,18.5327854]
[1729750374951,0.25098,173.72,173.68,18.5327854]
[1729750375945,24.5402654,173.72,173.67,18.5327854]
[1729750376541,24.5402654,173.72,173.66,18.5327854]
[1729750376849,18.7837654,173.7,173.64,18.5327854]
[1729750377855,29.784664,173.71,173.66,18.5327854]
[1729750378854,48.3174494,173.71,173.66,18.5327854]
[1729750380162,29.784664,173.71,173.68,18.5327854]
[1729750380659,5.755,173.76,173.7,18.5327854]
[1729750380852,18.5327854,173.75,173.7,18.5327854]
[1729750381052,18.5327854,173.75,173.69,18.5327854]
[1729750381249,18.5327854,173.74,173.69,18.5327854]
[1729750381632,5.756,173.73,173.69,18.5327854]
[1729750381866,0.25098,173.72,173.69,18.5327854]
[1729750382738,18.7837654,173.72,173.61,43.776884]
[1729750382948,18.7837654,173.72,173.67,18.5327854]
[1729750383359,18.7837654,173.72,173.61,43.876884]
[1729750383756,24.5402654,173.72,173.67,18.5327854]
[1729750383963,6.00748,173.72,173.68,18.5327854]
[1729750384462,6.00748,173.72,173.69,18.5327854]
[1729750384961,25.755,173.76,173.71,18.5327854]
[1729750386347,24.027864,173.75,173.71,18.5327854]
[1729750386750,29.783464,173.75,173.71,18.5327854]
[1729750388860,22.4956,173.84,173.74,18.5327854]
[1729750389063,5.7527,173.83,173.78,18.5327854]
[1729750389254,30.2177497,173.83,173.78,18.5327854]
[1729750389456,24.2854854,173.83,173.77,18.5327854]
[1729750390169,44.027864,173.82,173.77,18.5327854]
[1729750390464,44.027864,173.82,173.78,18.5327854]
[1729750390651,44.027864,173.82,173.77,18.5327854]
[1729750391440,68.3139494,173.82,173.76,18.5327854]
[1729750392444,22.4956,173.84,173.79,18.5327854]
[1729750392665,5.7527,173.83,173.79,18.5327854]
[1729750393774,0.25098,173.82,173.8,18.5327854]
[1729750394346,22.4956,173.87,173.81,18.5327854]
[1729750394545,5.7517,173.86,173.83,18.5327854]
[1729750395369,28.247,173.87,173.83,18.5327854]
[1729750395574,28.247,173.87,173.82,18.5327854]
[1729750396072,29.779664,173.86,173.82,18.5327854]
[1729750398281,0.25098,173.86,173.82,18.5327854]
[1729750400561,0.25098,173.87,173.82,18.5327854]
[1729750400854,29.779264,173.87,173.82,18.5327854]
[1729750401782,48.3120494,173.87,173.82,18.5327854]
[1729750402079,20.0,173.88,173.85,18.5327854]
[1729750402270,20.0,173.88,173.84,18.5327854]
[1729750402870,20.0,173.88,173.83,18.5327854]
[1729750403068,38.5327854,173.88,173.83,18.5327854]
[1729750403681,0.12549,173.87,173.83,18.5327854]
[1729750405472,6.00258,173.87,173.76,16.6447]
[1729750405663,24.5353654,173.87,173.82,18.5327854]
[1729750406064,24.5353654,173.87,173.81,18.5327854]
[1729750406389,24.5353654,173.87,173.8,18.5327854]
[1729750406390,0.25098,173.85,173.8,18.5327854]
[1729750406563,18.7837654,173.85,173.8,18.5327854]
[1729750407885,0.25098,173.83,173.78,18.5327854]
[1729750409278,5.753,173.82,173.78,18.5327854]
[1729750409488,0.12549,173.81,173.78,18.5327854]
[1729750411975,18.5327854,173.8,173.75,18.5327854]
[1729750412366,0.25098,173.79,173.75,18.5327854]
[1729750412569,18.7837654,173.79,173.74,18.5327854]
[1729750415192,0.25098,173.79,173.76,18.5327854]
[1729750416499,0.25098,173.79,173.75,18.5327854]
[1729750416786,0.25098,173.8,173.75,18.5327854]
[1729750417985,18.7837654,173.8,173.75,18.5327854]
[1729750418665,24.5375654,173.8,173.75,18.5327854]
[1729750419287,18.7837654,173.8,173.75,18.5327854]
[1729750419889,0.25098,173.8,173.75,18.5327854]
[1729750422505,18.7837654,173.8,173.72,16.6447]
[1729750422700,24.5374654,173.8,173.74,18.5327854]
[1729750423997,20.0,173.82,173.77,18.5327854]
[1729750424684,46.7810854,173.83,173.77,18.5327854]
[1729750425403,18.7837654,173.82,173.72,16.6447]
[1729750425607,0.12549,173.8,173.76,18.5327854]
[1729750427510,0.25098,173.78,173.73,18.5327854]
[1729750427826,18.7837654,173.78,173.73,18.5327854]
[1729750428315,0.12549,173.76,173.71,18.5327854]
[1729750428811,18.6582754,173.76,173.71,18.5327854]
[1729750429719,0.12549,173.76,173.72,18.5327854]
[1729750432014,0.12549,173.77,173.73,18.5327854]
[1729750434009,0.12549,173.76,173.67,18.25708177]
[1729750434211,0.12549,173.75,173.7,18.5327854]
[1729750435417,18.6582754,173.75,173.7,18.5327854]
[1729750435622,0.12549,173.74,173.7,18.5327854]
[1729750436219,0.12549,173.74,173.69,18.5327854]
[1729750438821,0.12549,173.74,173.71,18.5327854]
[1729750439008,0.25098,173.75,173.71,18.5327854]
[1729750439198,18.7837654,173.76,173.71,18.5327854]
[1729750439910,0.25098,173.76,173.72,18.5327854]
[1729750440103,0.25098,173.76,173.73,18.5327854]
[1729750440299,0.12549,173.76,173.74,18.5327854]
[1729750440501,27.554,173.81,173.75,18.5327854]
[1729750440807,5.7531,173.82,173.79,18.5327854]
[1729750441720,5.7527,173.83,173.79,18.5327854]
[1729750442413,24.2854854,173.83,173.78,18.5327854]
[1729750442617,18.7837654,173.82,173.77,18.5327854]
[1729750442819,24.5368654,173.82,173.77,18.5327854]
[1729750444326,6.00408,173.82,173.78,18.5327854]
[1729750453034,6.00408,173.82,173.79,18.5327854]
[1729750453515,6.00408,173.82,173.78,18.5327854]
[1729750459642,27.912358,173.82,173.78,18.5327854]
[1729750460525,27.912358,173.82,173.77,18.5327854]
[1729750461640,46.4451434,173.82,173.77,18.5327854]
[1729750461845,27.912358,173.82,173.77,18.5327854]
[1729750462646,27.912358,173.82,173.78,18.5327854]
[1729750467369,18.7837654,173.8,173.75,18.5327854]
[1729750467653,18.5327854,173.79,173.74,18.5327854]
[1729750467833,0.25098,173.78,173.73,18.5327854]
[1729750468872,24.2874854,173.77,173.72,18.5327854]
[1729750469153,0.25098,173.76,173.72,18.5327854]
[1729750469754,0.25098,173.76,173.71,18.5327854]
[1729750471152,0.25098,173.76,173.72,18.5327854]
[1729750474050,18.7837654,173.76,173.71,18.5327854]
[1729750484669,18.7837654,173.76,173.71,18.5327854]
[1729750484875,0.12549,173.76,173.73,18.5327854]
[1729750485167,48.3153494,173.77,173.72,18.5327854]
[1729750486670,48.3153494,173.77,173.73,18.5327854]
[1729750486879,0.25098,173.75,173.72,18.5327854]
[1729750489370,0.25098,173.76,173.73,18.5327854]
[1729750490669,0.25098,173.76,173.72,18.5327854]
[1729750500349,0.25098,173.76,173.73,18.5327854]
[1729750500550,27.661578,173.82,173.75,18.5327854]
[1729750500751,27.661578,173.82,173.79,18.5327854]
[1729750501057,21.908278,173.82,173.81,18.5327854]
[1729750503771,21.908278,173.82,173.75,18.12827941]
[1729750503962,21.908278,173.82,173.81,18.5327854]